bitfinex-derivatives/quotes_ETHF0:USTF0_20250213
["timestamp","ask_amount","ask_price","bid_price","bid_amount"]
[1739423243661,3.94587,2709.4,2708.9,0.73818]
[1739423243865,3.2078,2709.4,2708.7,0.00554129]
[1739423244054,5.71579,2709.7,2709.2,0.7381]
[1739423244260,4.03630302,2710.0,2708.7,0.00554129]
[1739423244261,3.21334129,2710.0,2709.1,1.769]
[1739423244455,3.21334129,2710.0,2709.6,0.73799]
[1739423244760,3.21334129,2710.0,2709.3,3.2078]
[1739423245462,3.2078,2709.7,2709.2,0.5781]
[1739423245960,3.21334129,2710.0,2709.4,3.2078]
[1739423246154,3.21334129,2710.0,2709.5,4.03076173]
[1739423246353,3.21334129,2710.0,2709.6,1.773]
[1739423246354,0.00554129,2710.0,2709.6,1.773]
[1739423246553,0.00554129,2710.0,2709.8,0.73793]
[1739423246761,0.00554129,2710.0,2709.7,40.8]
[1739423246962,0.00554129,2710.0,2709.9,0.73792]
[1739423247159,0.00554129,2710.0,2709.8,3.2078]
[1739423247462,0.74344129,2710.0,2709.6,1.773]
[1739423247761,0.73796,2709.8,2709.5,44.0078]
[1739423247950,0.00554129,2710.0,2709.7,0.73796]
[1739423248358,0.00554129,2710.0,2709.5,40.8]
[1739423248552,0.73794,2709.9,2709.4,1.776]
[1739423248756,0.73799,2709.7,2709.3,0.73808]
[1739423248956,3.2078,2709.5,2708.7,0.00554129]
[1739423249259,0.73818,2709.0,2708.7,0.00554129]
[1739423249463,3.2078,2709.1,2708.7,0.00554129]
[1739423249762,1.29798,2709.0,2708.7,0.00554129]
[1739423249957,3.94602,2708.8,2708.7,0.00554129]
[1739423250559,3.94602,2708.8,2707.4,1.782]
[1739423250560,13.23856173,2708.8,2707.4,1.782]
[1739423250765,3.2078,2708.3,2707.9,0.73847]
[1739423250960,3.2078,2708.3,2707.1,0.5882]
[1739423251168,3.2078,2707.3,2706.9,0.5907]
[1739423251362,3.2078,2707.3,2706.8,0.73876]
[1739423251667,3.2078,2707.3,2706.9,0.73874]
[1739423251865,3.21334129,2707.3,2706.8,0.00554129]
[1739423252069,0.00554129,2707.3,2707.2,0.73866]
[1739423252257,0.00554129,2707.3,2707.1,0.73868]
[1739423252461,0.00554129,2707.3,2706.8,40.80554129]
[1739423252860,0.00554129,2707.3,2706.8,44.01334129]
[1739423253065,0.00554129,2707.3,2706.8,40.80554129]
[1739423253265,0.00554129,2707.3,2707.2,0.73866]
[1739423253472,0.00554129,2707.3,2707.2,2.54366]
[1739423253665,0.00554129,2707.3,2707.2,5.75146]
[1739423253963,0.00554129,2707.3,2707.2,2.54366]
[1739423254168,0.00554129,2707.3,2706.9,3.7576]
[1739423254362,0.00554129,2707.3,2707.0,1.807]
[1739423255561,0.00554129,2707.3,2707.0,2.5457]
[1739423255871,0.00554129,2707.3,2707.0,1.807]
[1739423256564,0.00554129,2707.3,2707.0,2.54569]
[1739423256762,0.00554129,2707.3,2707.0,1.807]
[1739423256971,0.00554129,2707.3,2707.1,41.53867]
[1739423257159,0.00554129,2707.3,2707.2,0.73866]
[1739423257864,0.00554129,2707.3,2707.2,41.53866]
[1739423258066,3.2078,2708.0,2707.2,40.8]
[1739423258471,3.2078,2708.0,2707.2,41.53864]
[1739423258768,1.803,2708.3,2707.1,3.2078]
[1739423258769,3.2078,2707.7,2707.1,3.2078]
[1739423258970,0.73859,2707.5,2707.1,3.2078]
[1739423259266,1.84687,2706.9,2705.7,3.36813616]
[1739423259473,3.2078,2706.6,2705.7,3.36813616]
[1739423259965,3.2078,2706.6,2706.0,3.2078]
[1739423260367,0.73892,2706.3,2706.0,0.00554129]
[1739423260570,0.73889,2706.4,2706.0,0.00554129]
[1739423260969,3.2078,2706.6,2706.0,0.74452129]
[1739423261171,3.2078,2706.6,2706.0,0.00554129]
[1739423261468,3.2078,2706.3,2706.0,0.00554129]
[1739423261662,3.2078,2706.6,2706.0,3.21334129]
[1739423261868,0.73889,2706.4,2706.0,0.00554129]
[1739423262064,3.2078,2706.6,2706.0,0.00554129]
[1739423262765,3.2078,2706.6,2706.1,40.8]
[1739423263068,0.73889,2706.4,2706.1,40.8]
[1739423263371,3.2078,2706.6,2706.1,40.8]
[1739423263559,3.2078,2706.6,2706.1,41.53894]
[1739423263762,0.73885,2706.5,2706.1,40.8]
[1739423263967,3.2078,2706.6,2706.1,40.8]
[1739423264269,3.2078,2706.6,2706.1,44.0078]
[1739423264462,0.5556,2706.8,2706.0,0.00554129]
[1739423264463,3.2078,2706.3,2706.0,0.00554129]
[1739423264666,0.73896,2706.1,2706.0,0.00554129]
[1739423265265,6.73896,2706.1,2706.0,0.00554129]
[1739423265672,0.73896,2706.1,2706.0,0.00554129]
[1739423265973,6.73896,2706.1,2706.0,0.00554129]
[1739423267269,6.0,2706.1,2705.7,0.16033616]
[1739423267468,0.73904,2705.8,2705.7,0.16033616]
[1739423267972,3.94683,2705.9,2705.7,0.16033616]
[1739423268273,3.2078,2705.9,2705.7,0.16033616]
[1739423268774,0.73904,2705.8,2705.7,0.16033616]
[1739423268975,3.2078,2705.9,2705.7,0.16033616]
[1739423269478,3.2078,2706.2,2705.7,0.16033616]
[1739423269668,0.73901,2706.0,2705.7,0.16033616]
[1739423269867,3.2078,2706.2,2705.7,0.16033616]
[1739423270167,0.73901,2705.9,2705.7,0.16033616]
[1739423270368,3.2078,2706.2,2705.7,0.16033616]
[1739423270571,0.739,2706.0,2705.7,0.16033616]
[1739423270771,0.73901,2705.9,2705.8,0.00620549]
[1739423271172,3.2078,2706.2,2705.8,0.00620549]
[1739423271571,0.73897,2706.1,2705.8,0.74523549]
[1739423271774,0.73899,2706.0,2705.8,0.00620549]
[1739423271979,0.73897,2706.1,2705.8,0.00620549]
[1739423272474,0.00554129,2706.3,2705.8,0.00620549]
[1739423272779,0.73895,2706.2,2705.8,0.74521549]
[1739423272977,0.00554129,2706.3,2706.0,0.73897]
[1739423273178,0.73893,2706.2,2705.9,0.739]
[1739423273368,0.73893,2706.2,2705.8,0.74523549]
[1739423273678,0.00554129,2706.3,2705.8,0.00620549]
[1739423273979,0.00554129,2706.3,2705.8,0.74524549]
[1739423274180,0.73896,2706.1,2705.8,0.74524549]
[1739423274478,0.00554129,2706.3,2705.8,0.74524549]
[1739423274479,0.73901,2705.9,2705.8,0.00620549]
[1739423274681,3.94681,2705.9,2705.8,0.00620549]
[1739423274873,3.2078,2705.9,2705.2,3.2078]
[1739423275074,0.5553,2705.8,2705.2,3.2078]
[1739423275671,3.2078,2705.9,2705.5,0.7391]
[1739423275876,0.5574,2706.2,2705.5,0.7391]
[1739423275877,3.21334129,2706.3,2705.6,0.5695]
[1739423276076,3.95226129,2706.3,2705.6,0.5695]
[1739423276278,3.95226129,2706.3,2705.8,3.2078]
[1739423276475,3.95226129,2706.3,2706.0,0.73898]
[1739423276672,0.00554129,2706.3,2705.8,3.2078]
[1739423276877,0.73896,2706.2,2705.8,0.73903]
[1739423277278,0.00554129,2706.3,2705.8,0.73902]
[1739423277482,0.00554129,2706.3,2705.7,1.0939]
[1739423277483,0.73899,2706.0,2705.7,1.0939]
[1739423277680,0.73898,2706.1,2705.7,1.83296]
[1739423277881,3.21334129,2706.3,2705.7,1.83296]
[1739423278079,0.73893,2706.2,2705.7,1.0939]
[1739423278278,3.21334129,2706.3,2705.7,1.0939]
[1739423278578,3.21334129,2706.3,2705.9,0.739]
[1739423278776,0.73895,2706.2,2705.8,0.73903]
[1739423279078,0.73894,2706.2,2705.7,1.0939]
[1739423279382,3.21334129,2706.3,2706.1,0.73894]
[1739423279383,0.00554129,2706.3,2706.1,0.73894]
[1739423279582,0.00554129,2706.3,2705.9,3.2078]
[1739423280275,0.00554129,2706.3,2706.2,0.73893]
[1739423280580,0.00554129,2706.3,2705.9,3.2078]
[1739423280878,0.00554129,2706.3,2705.7,1.0939]
[1739423281083,0.00554129,2706.3,2705.6,0.5695]
[1739423281084,3.2078,2706.1,2705.6,0.5695]
[1739423281279,0.73907,2705.7,2705.6,0.5695]
[1739423281784,3.2078,2705.8,2705.6,0.5695]
[1739423282385,4.04731482,2706.3,2705.6,0.5695]
[1739423282681,0.73894,2706.2,2705.9,0.739]
[1739423282877,4.78622482,2706.3,2706.0,0.73898]
[1739423283072,4.04731482,2706.3,2705.7,0.578]
[1739423283372,0.00554129,2706.3,2705.7,0.578]
[1739423283577,0.00554129,2706.3,2706.1,0.73895]
[1739423283770,0.74445129,2706.3,2706.0,0.73897]
[1739423283979,0.74446129,2706.3,2705.9,3.2078]
[1739423284180,0.00554129,2706.3,2705.9,5.0378]
[1739423284583,5.89459482,2706.3,2705.9,3.2078]
[1739423284772,5.89459482,2706.3,2705.8,0.5679]
[1739423284773,0.73901,2705.9,2705.8,0.5679]
[1739423284978,3.2078,2706.1,2705.6,0.5695]
[1739423285178,0.73912,2705.5,2705.3,1.104]
[1739423285482,4.04177353,2706.0,2705.3,1.6936]
[1739423285783,0.73913,2705.5,2705.3,1.6936]
[1739423286580,3.2078,2705.7,2705.3,1.6936]
[1739423286785,0.58144209,2705.9,2705.4,0.73914]
[1739423286982,3.2078,2706.1,2705.3,1.6936]
[1739423287288,0.739,2706.0,2705.5,3.2078]
[1739423287490,0.73904,2705.8,2705.6,1.833]
[1739423287786,3.2078,2706.1,2705.6,1.833]
[1739423288188,3.2078,2706.1,2705.9,0.739]
[1739423288390,3.2078,2706.1,2705.7,0.73905]
[1739423288579,3.2078,2706.1,2705.6,2.57207]
[1739423288779,0.73905,2705.8,2705.6,1.833]
[1739423288978,0.73905,2705.8,2705.5,3.2078]
[1739423289187,3.2078,2706.1,2705.3,4.26776]
[1739423289380,0.7391,2705.6,2705.3,4.26776]
[1739423289581,0.5379,2706.0,2705.5,0.7391]
[1739423289786,0.73902,2705.9,2705.6,0.73909]
[1739423290286,0.5379,2706.0,2705.3,3.5286]
[1739423290484,0.73905,2705.8,2705.5,0.73912]
[1739423290682,1.12075101,2706.0,2705.3,3.5286]
[1739423290891,1.85975101,2706.0,2705.7,0.73904]
[1739423291084,0.58285101,2706.0,2705.3,3.5286]
[1739423291285,3.2078,2706.1,2705.3,3.5286]
[1739423291782,3.94676,2706.1,2705.8,0.73903]
[1739423291986,3.94676,2706.1,2705.3,3.5286]
[1739423292183,1.32179101,2706.2,2705.9,0.73901]
[1739423292377,3.2078,2706.1,2705.8,0.73902]
[1739423292582,0.58285101,2706.2,2705.5,3.2078]
[1739423292782,0.54964129,2706.3,2705.5,3.2078]
[1739423292983,0.73898,2706.1,2705.5,3.2078]
[1739423293284,0.54964129,2706.3,2705.5,3.2078]
[1739423293482,0.73897,2706.1,2705.8,0.73904]
[1739423293882,1.1324923,2706.3,2705.5,3.2078]
[1739423294083,0.54964129,2706.3,2705.5,3.2078]
[1739423294585,0.00554129,2706.3,2705.9,3.2078]
[1739423294791,0.00554129,2706.3,2706.0,1.6548]
[1739423294983,0.73894,2706.2,2706.0,1.6548]
[1739423295290,0.73903,2705.9,2705.6,1.827]
[1739423295486,0.54484129,2706.3,2705.6,2.3895]
[1739423295682,0.54484129,2706.3,2705.6,5.5973]
[1739423295882,0.00554129,2706.3,2705.6,2.3895]
[1739423296296,0.00554129,2706.3,2705.6,0.5625]
[1739423296297,3.2078,2706.1,2705.6,0.5625]
[1739423296487,0.73911,2705.6,2705.3,1.31166]
[1739423296690,3.2078,2706.1,2705.3,0.5725]
[1739423296996,0.73903,2705.9,2705.3,0.5725]
[1739423297293,0.73908,2705.7,2705.4,0.73914]
[1739423297791,0.73907,2705.7,2705.3,1.31166]
[1739423297993,3.2078,2705.8,2705.3,0.5725]
[1739423298598,0.73911,2705.6,2705.3,0.5725]
[1739423298894,3.2078,2705.8,2705.3,0.5725]
[1739423299091,0.73911,2705.6,2705.3,0.5725]
[1739423299495,3.2078,2705.8,2705.3,0.5725]
[1739423299893,0.73913,2705.5,2705.3,0.5725]
[1739423300895,0.73907,2705.7,2705.3,1.31167]
[1739423301097,3.2078,2705.8,2705.3,0.5725]
[1739423301098,0.7391,2705.6,2705.3,0.5725]
[1739423301598,3.79065101,2705.8,2705.3,0.5725]
[1739423301798,3.79065101,2705.8,2705.5,0.73911]
[1739423302002,3.2078,2705.8,2705.3,0.5725]
[1739423302698,3.94686,2705.8,2705.4,0.73914]
[1739423302901,3.2078,2705.8,2705.5,0.73912]
[1739423303101,3.2078,2705.8,2705.3,0.5725]
[1739423303393,3.2078,2705.8,2705.2,3.2078]
[1739423303586,3.2078,2705.8,2705.4,0.73915]
[1739423303793,3.2078,2705.8,2705.2,3.2078]
[1739423304295,3.2078,2705.8,2705.3,0.73917]
[1739423304793,0.73909,2705.7,2705.3,0.73917]
[1739423304994,0.73909,2705.7,2705.3,0.73916]
[1739423305202,3.2078,2705.8,2705.3,0.73916]
[1739423305393,0.73908,2705.7,2705.3,0.73915]
[1739423305598,3.2078,2705.8,2705.2,3.2078]
[1739423305899,3.94686,2705.8,2705.5,0.73911]
[1739423306201,3.2078,2705.8,2705.2,7.24957353]
[1739423306395,3.94685,2705.8,2705.5,0.73911]
[1739423306895,3.2078,2705.8,2705.5,0.73911]
[1739423307100,3.2078,2705.8,2705.2,7.24957353]
[1739423307399,3.2078,2705.8,2705.5,0.73911]
[1739423307591,3.94685,2705.8,2705.5,0.73911]
[1739423307790,3.2078,2705.8,2705.6,0.73909]
[1739423308095,3.2078,2705.8,2705.7,0.73907]
[1739423308295,0.5442,2705.9,2705.2,7.24957353]
[1739423308502,1.28322,2705.9,2705.7,0.73907]
[1739423308795,0.5442,2705.9,2705.7,0.73907]
[1739423309207,0.5442,2705.9,2705.6,0.73908]
[1739423309702,0.5442,2705.9,2705.2,7.24957353]
[1739423309901,0.5442,2705.9,2705.7,0.73905]
[1739423310498,0.739,2706.0,2705.1,2.4058]
[1739423310499,3.2078,2706.1,2705.5,9.09734353]
[1739423310796,3.2078,2706.1,2705.2,7.24957353]
[1739423311002,0.73905,2705.8,2705.5,0.73911]
[1739423311393,0.5514,2706.0,2705.2,7.24957353]
[1739423311601,0.5514,2706.0,2705.3,3.22431417]
[1739423311901,0.5514,2706.0,2705.7,0.73905]
[1739423311902,1.29039,2706.0,2705.7,0.73905]
[1739423312104,0.58975506,2706.3,2705.6,3.22431417]
[1739423312291,0.73899,2706.0,2705.7,0.5389]
[1739423312496,0.00554129,2706.3,2705.7,0.5389]
[1739423312698,0.00554129,2706.3,2705.7,1.27794]
[1739423313205,0.73898,2706.1,2705.8,0.73904]
[1739423313800,0.00554129,2706.3,2705.7,1.1316]
[1739423314104,0.73897,2706.1,2705.7,1.87065]
[1739423314505,0.73894,2706.2,2705.7,1.1316]
[1739423314697,0.74446129,2706.3,2705.7,1.6851]
[1739423315001,0.00554129,2706.3,2705.9,0.739]
[1739423315196,0.74445129,2706.3,2705.9,0.73899]
[1739423315397,0.00554129,2706.3,2706.0,0.73897]
[1739423315798,3.21334129,2706.3,2705.8,3.2078]
[1739423315995,3.21334129,2706.3,2706.0,0.73897]
[1739423316199,0.74445129,2706.3,2705.9,0.739]
[1739423316500,0.00554129,2706.3,2705.8,3.2078]
[1739423316806,0.00554129,2706.3,2706.1,0.73895]
[1739423317005,0.00554129,2706.3,2706.0,0.73896]
[1739423317205,0.00554129,2706.3,2705.8,3.2078]
[1739423317405,0.74445129,2706.3,2705.8,3.2078]
[1739423317604,0.00554129,2706.3,2705.8,3.2078]
[1739423317805,0.74445129,2706.3,2705.9,0.73899]
[1739423318004,0.00554129,2706.3,2705.8,3.2078]
[1739423318400,0.00554129,2706.3,2706.1,0.73894]
[1739423318907,0.00554129,2706.3,2705.9,3.22431417]
[1739423319107,0.73894,2706.2,2705.9,3.96332417]
[1739423319303,0.74446129,2706.3,2705.9,0.73901]
[1739423319606,0.00554129,2706.3,2705.9,3.22431417]
[1739423320204,0.00554129,2706.3,2706.1,0.73896]
[1739423320700,0.00554129,2706.3,2705.9,3.22431417]
[1739423321010,0.00554129,2706.3,2706.1,0.73894]
[1739423321306,0.74445129,2706.3,2706.0,0.73897]
[1739423321504,0.73895,2706.2,2705.9,0.739]
[1739423321809,0.00554129,2706.3,2705.7,1.6851]
[1739423322001,0.74447129,2706.3,2705.7,1.6851]
[1739423322203,0.73893,2706.2,2705.9,0.73899]
[1739423322706,0.73901,2706.0,2705.7,1.6851]
[1739423323002,0.00554129,2706.3,2705.7,1.6851]
[1739423323195,0.73894,2706.2,2705.7,1.6851]
[1739423323399,0.73894,2706.2,2705.9,0.739]
[1739423323600,0.00554129,2706.3,2706.1,0.73895]
[1739423323796,0.00554129,2706.3,2705.8,3.2078]
[1739423324211,0.00554129,2706.3,2706.1,0.73894]
[1739423324410,0.00554129,2706.3,2705.8,3.2078]
[1739423324605,0.00554129,2706.3,2706.2,0.73893]
[1739423325308,0.00554129,2706.3,2705.8,3.2078]
[1739423325908,0.00554129,2706.3,2706.2,0.73893]
[1739423326900,0.00554129,2706.3,2705.9,3.22431417]
[1739423327100,0.00554129,2706.3,2706.1,0.73895]
[1739423327310,0.00554129,2706.3,2705.9,3.22431417]
[1739423327806,0.00554129,2706.3,2706.1,0.73895]
[1739423328109,0.00554129,2706.3,2705.9,3.22431417]
[1739423328610,0.00554129,2706.3,2706.0,0.73899]
[1739423328805,0.00554129,2706.3,2705.9,3.22431417]
[1739423329011,0.00554129,2706.3,2706.1,0.73895]
[1739423329306,0.00554129,2706.3,2706.1,0.73893]
[1739423329508,0.00554129,2706.3,2705.9,3.22431417]
[1739423329911,0.00554129,2706.3,2706.1,0.73894]
[1739423330212,0.00554129,2706.3,2705.9,3.22431417]
[1739423330414,0.00554129,2706.3,2706.1,0.73894]
[1739423330604,0.00554129,2706.3,2705.9,3.22431417]
[1739423330805,0.00554129,2706.3,2706.2,0.73893]
[1739423331004,0.00554129,2706.3,2705.9,3.22431417]
[1739423331512,0.73895,2706.2,2705.8,3.2078]
[1739423331714,0.00554129,2706.3,2705.8,3.2078]
[1739423332105,0.74446129,2706.3,2706.0,0.73896]
[1739423332305,0.73893,2706.2,2706.0,0.73896]
[1739423332506,0.74446129,2706.3,2706.0,0.73896]
[1739423332707,0.00554129,2706.3,2705.8,3.2078]
[1739423332908,0.73898,2706.1,2705.8,1.772]
[1739423333214,0.00554129,2706.3,2705.9,0.73899]
[1739423333411,0.73893,2706.2,2705.9,0.739]
[1739423333616,0.00554129,2706.3,2705.8,1.772]
[1739423334106,0.73894,2706.2,2706.0,0.73898]
[1739423334307,0.00554129,2706.3,2705.9,0.739]
[1739423334510,0.00554129,2706.3,2705.8,1.772]
[1739423334511,0.00554129,2706.3,2706.1,0.73896]
[1739423334710,0.00554129,2706.3,2705.8,1.772]
[1739423334911,0.00554129,2706.3,2706.2,0.73893]
[1739423336013,0.00554129,2706.3,2705.8,1.772]
[1739423336317,0.00554129,2706.3,2706.2,0.73893]
[1739423337814,0.00554129,2706.3,2706.1,0.73893]
[1739423338310,0.00554129,2706.3,2705.8,1.772]
[1739423338612,0.74447129,2706.3,2706.1,0.73896]
[1739423338916,0.00554129,2706.3,2706.1,0.73896]
[1739423339113,0.00554129,2706.3,2706.2,0.73893]
[1739423340205,0.74444129,2706.3,2706.1,0.73895]
[1739423340412,0.00554129,2706.3,2706.2,0.73893]
[1739423341515,3.2078,2707.7,2707.4,0.73859]
[1739423341714,3.2078,2707.7,2706.3,7.38893]
[1739423341715,3.2078,2707.7,2707.1,3.22431417]
[1739423341918,3.94633,2707.7,2707.3,0.73862]
[1739423342115,0.5501,2707.9,2707.2,1.1196]
[1739423342314,0.5491,2708.2,2707.2,1.1196]
[1739423342315,0.73839,2708.2,2707.4,3.22431417]
[1739423342511,3.2078,2708.4,2707.5,1.761]
[1739423342714,3.21334129,2708.1,2707.7,3.22431417]
[1739423342911,3.21334129,2708.1,2708.0,0.73844]
[1739423343122,0.00554129,2708.1,2708.0,5.72375417]
[1739423343413,3.2078,2708.7,2708.4,0.73833]
[1739423343713,3.2078,2708.7,2708.5,2.5003]
[1739423344022,1.3059,2709.3,2708.5,1.762]
[1739423344214,3.2078,2709.4,2708.6,3.22431417]
[1739423344415,0.00554129,2709.2,2708.9,0.73818]
[1739423344718,3.78581417,2709.8,2709.1,3.2078]
[1739423344719,3.2078,2709.8,2709.1,3.2078]
[1739423345018,3.2078,2709.8,2709.3,3.96238417]
[1739423345216,3.2078,2709.8,2709.3,3.22431417]
[1739423345513,1.1364,2710.7,2709.0,2.8728]
[1739423345514,6.43211417,2710.4,2709.6,3.22431417]
[1739423345717,3.2078,2710.1,2709.7,1.773]
[1739423345906,3.94575,2709.8,2709.7,0.00554129]
[1739423346307,3.2078,2709.8,2709.7,0.00554129]
[1739423346514,1.31282,2710.0,2709.7,0.00554129]
[1739423346711,0.5749,2710.0,2709.7,0.00554129]
[1739423346916,3.2078,2710.1,2709.7,0.00554129]
[1739423348116,0.00554129,2710.3,2709.8,1.776]
[1739423348618,0.00554129,2710.3,2709.9,3.22431417]
[1739423348816,0.00554129,2710.3,2709.9,3.79381417]
[1739423349016,0.00554129,2710.3,2710.2,3.22431417]
[1739423350132,3.2078,2711.1,2710.2,8.06901754]
[1739423350311,0.73768,2710.8,2710.6,3.22431417]
[1739423350515,0.7377,2710.7,2710.6,3.22431417]
[1739423350816,0.73767,2710.9,2710.6,3.22431417]
[1739423351010,3.2078,2711.1,2710.6,3.22431417]
[1739423351216,3.2078,2711.1,2710.3,5.00031417]
[1739423351217,0.73771,2710.7,2710.3,5.00031417]
[1739423351919,0.73764,2711.0,2710.3,5.73810417]
[1739423352125,3.21334129,2711.1,2710.3,5.00031417]
[1739423352320,3.2078,2710.8,2710.1,0.5747]
[1739423352620,3.2078,2710.5,2710.0,5.73619417]
[1739423352823,3.9455,2710.8,2710.3,3.22431417]
[1739423353021,3.2078,2710.8,2710.3,3.22431417]
[1739423353225,3.2078,2710.8,2710.6,3.22431417]
[1739423353811,0.73764,2711.0,2710.6,3.22431417]
[1739423354023,0.73766,2710.9,2710.6,3.22431417]
[1739423354322,0.73769,2710.8,2710.6,3.22431417]
[1739423354523,0.73772,2710.7,2710.3,4.99931417]
[1739423354723,3.21334129,2711.1,2710.3,4.99931417]
[1739423354912,0.73769,2710.8,2710.3,5.73711417]
[1739423355117,3.21334129,2711.1,2710.3,4.99931417]
[1739423355317,3.21334129,2711.1,2710.6,3.22431417]
[1739423355719,3.21334129,2711.1,2710.8,0.73766]
[1739423355920,3.21334129,2711.1,2710.8,1.778]
[1739423356319,3.21334129,2711.1,2710.6,1.777]
[1739423356524,3.2078,2710.8,2710.3,1.777]
[1739423356928,0.73779,2710.4,2710.3,1.777]
[1739423357321,3.94549,2710.8,2710.3,5.00131417]
[1739423357527,3.2078,2710.8,2710.4,0.73778]
[1739423357717,3.2078,2710.8,2710.3,1.777]
[1739423357918,0.73779,2710.4,2710.3,1.777]
[1739423358430,0.73795,2709.8,2709.2,4.02605634]
[1739423358626,0.73792,2710.0,2709.5,0.73802]
[1739423358928,3.2078,2710.2,2709.5,0.73803]
[1739423359124,0.73792,2710.0,2709.5,0.73803]
[1739423359322,3.2078,2710.2,2709.2,7.23385634]
[1739423359522,0.73791,2710.0,2709.2,7.23385634]
[1739423359718,3.2078,2710.2,2709.6,0.73799]
[1739423359926,3.2078,2710.2,2709.5,7.23385634]
[1739423360117,3.2078,2710.2,2709.6,0.73799]
[1739423360319,3.2078,2710.2,2709.5,4.02605634]
[1739423360320,0.73791,2710.0,2709.5,4.76407634]
[1739423360624,0.73795,2709.8,2709.5,4.9958]
[1739423361025,0.73795,2709.8,2709.5,1.788]
[1739423361423,3.2078,2710.2,2709.5,1.788]
[1739423361618,0.73795,2709.8,2709.5,1.788]
[1739423361824,0.73792,2710.0,2709.4,4.9938]
[1739423362031,0.73792,2710.0,2709.6,0.73799]
[1739423362423,0.73792,2710.0,2709.4,4.9938]
[1739423362623,0.73792,2710.0,2709.5,0.73801]
[1739423362823,0.73794,2709.9,2709.4,5.73183]
[1739423363023,0.73794,2709.9,2709.4,4.9938]
[1739423363228,3.2078,2710.2,2709.6,0.73799]
[1739423363428,0.7379,2710.0,2709.5,0.73802]
[1739423363927,0.73793,2709.9,2709.4,4.9938]
[1739423364228,3.2078,2710.2,2709.4,4.9938]
[1739423364529,0.73792,2709.9,2709.4,4.9938]
[1739423364732,0.73792,2709.9,2709.4,5.73184]
[1739423364931,0.73794,2709.9,2709.5,0.73803]
[1739423365230,3.2078,2710.2,2709.5,4.02605634]
[1739423365430,3.2078,2710.2,2709.5,4.60305634]
[1739423365630,0.73791,2710.0,2709.6,0.73799]
[1739423366024,3.2078,2710.2,2709.5,4.60305634]
[1739423366232,0.73792,2710.0,2709.5,4.60305634]
[1739423366426,0.73792,2710.0,2709.6,0.73799]
[1739423367122,0.73792,2710.0,2709.7,0.74352129]
[1739423367317,3.2078,2710.2,2709.7,40.80554129]
[1739423367526,0.73793,2709.9,2709.7,40.80554129]
[1739423367732,0.73788,2710.1,2709.7,41.54349129]
[1739423368228,0.7379,2710.0,2709.7,40.80554129]
[1739423368423,0.73789,2710.1,2709.7,40.80554129]
[1739423368626,0.73789,2710.1,2709.7,41.54351129]
[1739423368925,3.94566,2710.2,2709.8,0.73794]
[1739423369125,3.2078,2710.2,2709.8,0.73794]
[1739423369327,0.73787,2710.1,2709.8,0.73794]
[1739423370035,3.2078,2710.2,2709.7,40.80554129]
[1739423370429,0.73788,2710.1,2709.8,0.73794]
[1739423370625,3.2078,2710.2,2709.7,40.80554129]
[1739423371027,3.94565,2710.2,2709.9,0.73792]
[1739423371227,0.73785,2710.2,2709.9,0.73792]
[1739423371428,0.566,2710.3,2709.8,0.73793]
[1739423371735,0.566,2710.3,2709.7,0.00554129]
[1739423371736,0.73786,2710.2,2709.7,0.00554129]
[1739423372031,0.566,2710.3,2709.7,0.00554129]
[1739423372226,0.73788,2710.1,2709.8,0.73793]
[1739423372433,0.73793,2709.9,2709.7,0.00554129]
[1739423372824,4.3284,2710.3,2709.7,0.00554129]
[1739423373036,0.7379,2710.0,2709.8,0.73794]
[1739423373228,4.3284,2710.3,2709.8,0.73794]
[1739423373535,0.73792,2709.9,2709.7,0.74351129]
[1739423373832,4.3284,2710.3,2709.7,0.74351129]
[1739423374034,1.1206,2710.3,2709.7,0.00554129]
[1739423374333,3.2078,2710.2,2709.7,0.00554129]
[1739423374539,1.1206,2710.3,2709.7,0.00554129]
[1739423374735,0.73795,2709.8,2709.7,0.00554129]
[1739423375028,5.05245,2710.2,2709.7,0.00554129]
[1739423375029,0.73795,2709.9,2709.7,0.00554129]
[1739423375635,0.73791,2710.0,2709.7,0.74350129]
[1739423375835,3.2078,2710.2,2709.7,0.00554129]
[1739423376024,0.73788,2710.1,2709.7,0.00554129]
[1739423376222,1.1206,2710.3,2709.8,0.73793]
[1739423376533,0.73789,2710.1,2709.8,0.73795]
[1739423376933,0.72578617,2710.1,2709.8,0.72584617]
[1739423377243,0.72578617,2710.1,2709.7,0.00554129]
[1739423377434,0.72578617,2710.1,2709.8,0.73793]
[1739423377632,0.73785,2710.2,2710.0,0.73788]
[1739423377940,0.73789,2710.0,2709.9,3.21361429]
[1739423381440,0.73795,2709.8,2709.7,0.00554129]
[1739423382035,0.73795,2709.8,2709.3,4.96561429]
[1739423382036,0.7381,2709.3,2709.1,0.73813]
[1739423382339,0.73806,2709.4,2709.2,0.7381]
[1739423382542,3.2078,2709.6,2709.0,3.21361429]
[1739423382835,3.2078,2709.6,2709.4,0.73805]
[1739423382836,3.94581,2709.6,2709.4,0.73805]
[1739423383237,3.2078,2709.6,2709.4,0.73806]
[1739423383442,0.73799,2709.7,2709.5,0.73803]
[1739423383643,0.00554129,2709.8,2709.5,0.73803]
[1739423383844,0.00554129,2709.8,2709.7,0.73798]
[1739423384048,0.00554129,2709.8,2709.6,3.21361429]
[1739423384535,0.73803,2709.5,2709.3,3.21361429]
[1739423384742,0.00554129,2709.8,2709.4,0.73806]
[1739423384944,0.73799,2709.7,2709.4,0.73806]
[1739423385242,0.74350129,2709.8,2709.5,0.73802]
[1739423385442,0.73798,2709.7,2709.5,0.73802]
[1739423385639,0.73798,2709.7,2709.3,3.21361429]
[1739423385835,0.00554129,2709.8,2709.3,3.21361429]
[1739423386035,0.00554129,2709.8,2709.4,0.73804]
[1739423386036,0.73799,2709.7,2709.4,0.73804]
[1739423386442,0.00554129,2709.8,2709.4,0.73804]
[1739423386643,0.74351129,2709.8,2709.4,0.73804]
[1739423386844,0.738,2709.7,2709.3,3.21361429]